bitfinex/quotes_SOLUSD_20241024
["timestamp","ask_amount","ask_price","bid_price","bid_amount"]
[1729747735589,0.25098,173.0,172.96,18.64488562]
[1729747736085,0.25098,173.0,172.95,18.64488562]
[1729747736474,0.25098,173.0,172.96,18.64488562]
[1729747737575,0.25098,173.0,172.92,0.6149104]
[1729747737768,0.25098,173.0,172.96,18.64488562]
[1729747737969,0.25098,173.0,172.92,0.6149104]
[1729747738375,0.25098,173.0,172.96,18.64488562]
[1729747742078,0.12549,173.0,172.99,18.64488562]
[1729747743468,0.25098,173.0,172.99,18.64488562]
[1729747743780,0.12549,173.0,172.99,18.64488562]
[1729747744975,16.179,173.09,172.99,18.64488562]
[1729747745279,20.0,173.08,173.04,18.64488562]
[1729747746302,24.027864,173.07,173.04,18.64488562]
[1729747747004,24.027864,173.07,172.96,16.065]
[1729747747005,18.64488562,173.06,172.96,16.065]
[1729747747205,24.027864,173.04,173.0,18.64488562]
[1729747747410,24.027864,173.04,173.01,18.64488562]
[1729747747984,0.25098,173.04,173.01,18.64488562]
[1729747748398,0.25098,173.04,172.96,16.065]
[1729747748599,0.25098,173.04,173.01,18.64488562]
[1729747748882,0.25098,173.04,173.02,18.64488562]
[1729747752592,20.0,173.08,173.03,18.64488562]
[1729747752792,20.0,173.08,173.05,18.64488562]
[1729747754005,24.027864,173.07,173.05,18.64488562]
[1729747754322,0.25098,173.07,173.05,18.64488562]
[1729747755309,0.25098,173.07,173.04,18.64488562]
[1729747758893,0.25098,173.07,173.03,18.64488562]
[1729747763015,0.25098,173.07,173.04,18.64488562]
[1729747766517,0.25098,173.07,173.03,18.64488562]
[1729747769125,0.12549,173.08,173.06,18.64488562]
[1729747769321,15.7899,173.14,173.07,18.64488562]
[1729747769495,15.7899,173.14,173.1,18.64488562]
[1729747769696,15.7899,173.14,173.09,18.64488562]
[1729747769920,34.43478562,173.14,173.09,18.64488562]
[1729747770218,15.7899,173.14,173.09,18.64488562]
[1729747770515,15.7899,173.14,173.02,15.3679]
[1729747770719,38.64488562,173.13,173.08,18.64488562]
[1729747771526,24.027864,173.12,173.08,18.64488562]
[1729747771818,24.027864,173.12,173.02,15.2679]
[1729747772022,24.027864,173.12,173.07,18.64488562]
[1729747772205,18.64488562,173.11,173.02,15.1679]
[1729747772408,24.027864,173.08,173.04,18.64488562]
[1729747773221,24.027864,173.08,172.98,15.2679]
[1729747773222,24.027864,173.08,173.05,18.64488562]
[1729747773824,0.25098,173.08,173.04,18.64488562]
[1729747776524,0.25098,173.08,173.05,18.64488562]
[1729747778729,0.25098,173.08,173.04,18.64488562]
[1729747780124,0.25098,173.08,172.98,17.69785294]
[1729747780320,0.25098,173.08,173.03,18.64488562]
[1729747781937,0.25098,173.08,173.04,18.64488562]
[1729747783232,0.25098,173.08,173.03,18.64488562]
[1729747783729,0.25098,173.06,173.02,18.64488562]
[1729747785333,0.25098,173.06,173.01,18.64488562]
[1729747786108,0.25098,173.06,173.02,18.64488562]
[1729747786314,0.12549,173.06,173.04,18.64488562]
[1729747786530,0.12549,173.06,173.05,18.64488562]
[1729747786834,0.12549,173.06,173.04,18.64488562]
[1729747788337,0.25098,173.06,173.01,18.64488562]
[1729747791724,0.25098,173.06,173.02,18.64488562]
[1729747792335,0.25098,173.06,173.03,18.64488562]
[1729747795042,0.25098,173.06,173.02,18.64488562]
[1729747798835,0.25098,173.06,173.01,18.64488562]
[1729747799238,25.7769,173.11,173.04,18.64488562]
[1729747799543,25.7769,173.11,172.97,6.2569]
[1729747799544,38.64488562,173.08,173.02,18.64488562]
[1729747800431,24.027864,173.07,173.02,18.64488562]
[1729747801728,42.67274962,173.07,173.01,18.64488562]
[1729747802054,24.027864,173.05,173.0,18.64488562]
[1729747802254,18.64488562,173.04,172.94,21.91873887]
[1729747802437,23.902374,173.03,172.98,18.64488562]
[1729747802625,23.902374,173.03,172.99,18.64488562]
[1729747802825,0.12549,173.03,172.99,18.64488562]
[1729747803731,0.12549,173.03,173.0,18.64488562]
[1729747805035,0.12549,173.03,173.01,18.64488562]
[1729747808058,15.3705,173.11,173.02,18.64488562]
[1729747808251,34.01538562,173.11,173.05,18.64488562]
[1729747809338,0.12549,173.1,173.05,18.64488562]
[1729747809733,20.12549,173.1,173.05,18.64488562]
[1729747810253,20.0,173.1,173.05,18.64488562]
[1729747810458,23.902374,173.09,173.05,18.64488562]
[1729747811442,0.12549,173.08,173.05,18.64488562]
[1729747811644,0.12549,173.08,173.06,18.64488562]
[1729747814741,0.12549,173.08,173.05,18.64488562]
[1729747815139,0.12549,173.08,173.04,18.64488562]
[1729747815344,0.12549,173.04,172.99,18.64488562]
[1729747815534,42.67274962,173.04,172.99,18.64488562]
[1729747816031,24.027864,173.04,173.0,18.64488562]
[1729747816857,24.027864,173.04,172.96,16.2254]
[1729747817233,24.027864,173.04,173.0,18.64488562]
[1729747817449,0.25098,173.04,173.0,18.64488562]
[1729747818034,18.89586562,173.04,172.96,16.2254]
[1729747818240,0.12549,173.02,172.99,18.64488562]
[1729747818653,0.25098,173.02,172.97,18.64488562]
[1729747819734,18.89586562,173.02,172.92,16.8403104]
[1729747819939,0.12549,173.0,172.97,18.64488562]
[1729747821163,0.12549,173.0,172.99,18.64488562]
[1729747825042,0.12549,173.0,172.98,18.64488562]
[1729747827158,0.12549,173.0,172.99,18.64488562]
[1729747830263,0.12549,173.0,172.92,16.8403104]
[1729747830449,0.12549,173.0,172.96,18.64488562]
[1729747830654,0.12549,173.0,172.98,18.64488562]
[1729747832663,0.12549,173.0,172.97,18.64488562]
[1729747835156,0.25098,173.0,172.95,18.64488562]
[1729747835666,0.12549,172.98,172.95,18.64488562]
[1729747836472,0.12549,172.98,172.92,0.6149104]
[1729747836653,0.12549,172.98,172.95,18.64488562]
[1729747837563,0.12549,172.98,172.96,18.64488562]
[1729747837973,0.12549,172.98,172.92,0.6149104]
[1729747838178,0.12549,172.98,172.96,18.64488562]
[1729747841676,5.779,173.04,172.96,18.64488562]
[1729747841868,20.0,173.01,172.97,18.64488562]
[1729747842881,23.902374,173.0,172.97,18.64488562]
[1729747843070,23.902374,173.0,172.92,0.6149104]
[1729747843262,23.902374,173.0,172.97,18.64488562]
[1729747843581,23.902374,173.0,172.96,18.64488562]
[1729747847384,0.12549,173.0,172.96,18.64488562]
[1729747853893,0.12549,173.0,172.97,18.64488562]
[1729747860187,23.776884,172.99,172.92,0.6149104]
[1729747860401,0.25098,172.98,172.94,18.64488562]
[1729747860602,0.25098,172.98,172.95,18.64488562]
[1729747871418,6.01376478,173.04,172.92,0.6149104]
[1729747871610,6.01376478,173.04,172.98,18.64488562]
[1729747871611,20.0,173.03,172.98,18.64488562]
[1729747871911,38.64488562,173.03,172.98,18.64488562]
[1729747872119,38.64488562,173.03,172.97,18.64488562]
[1729747872321,20.0,173.01,172.97,18.64488562]
[1729747872608,38.64488562,173.01,172.95,18.64488562]
[1729747872814,42.67274962,173.0,172.95,18.64488562]
[1729747873004,42.67274962,173.0,172.92,0.6149104]
[1729747873211,42.67274962,173.0,172.94,18.64488562]
[1729747874108,24.027864,173.0,172.95,18.64488562]
[1729747874311,24.027864,173.0,172.96,18.64488562]
[1729747877494,42.67274962,173.0,172.95,18.64488562]
[1729747878220,24.027864,173.0,172.95,18.64488562]
[1729747879623,42.67274962,173.0,172.95,18.64488562]
[1729747881217,25.7793,173.04,172.97,18.64488562]
[1729747881425,20.0,173.02,172.97,18.64488562]
[1729747882627,0.12549,173.0,172.97,18.64488562]
[1729747883121,0.12549,173.0,172.98,18.64488562]
[1729747886628,0.12549,173.0,172.97,18.64488562]
[1729747893711,0.12549,173.0,172.96,18.64488562]
[1729747895237,0.12549,173.0,172.92,6.7729104]
[1729747895421,0.12549,173.0,172.96,18.64488562]
[1729747896929,0.12549,172.98,172.94,18.64488562]
[1729747897535,0.12549,172.98,172.92,0.6149104]
[1729747897923,0.12549,172.98,172.94,18.64488562]
[1729747901438,0.12549,172.98,172.95,18.64488562]
[1729747901636,0.12549,172.98,172.92,0.6149104]
[1729747901934,0.12549,172.98,172.94,18.64488562]
[1729747902844,0.12549,172.98,172.92,0.6149104]
[1729747903021,0.12549,172.96,172.92,0.6149104]
[1729747903222,0.25098,172.96,172.92,19.25979602]
[1729747905236,23.776884,172.95,172.92,0.6149104]
[1729747905534,0.12549,172.94,172.92,0.6149104]
[1729747905842,0.12549,172.94,172.92,19.25979602]
[1729747907042,0.12549,172.94,172.92,0.6149104]
[1729747910919,23.776884,172.95,172.92,0.6149104]
[1729747910920,42.67274962,172.93,172.92,0.6149104]
[1729747911320,24.027864,172.93,172.92,0.6149104]
[1729747921534,23.902374,172.93,172.92,0.6149104]
[1729747921738,20.0,172.99,172.92,19.25979602]
[1729747922053,38.64488562,172.99,172.94,18.64488562]
[1729747922931,0.25098,172.98,172.94,18.64488562]
[1729747923167,24.027864,172.98,172.94,18.64488562]
[1729747923335,23.902374,172.96,172.94,18.64488562]
[1729747926237,23.902374,172.96,172.95,18.64488562]
[1729747926841,16.6057,173.04,172.95,18.64488562]
[1729747927050,16.6057,173.04,173.01,18.64488562]
[1729747927248,35.25058562,173.04,172.99,18.64488562]
[1729747928152,18.64488562,173.04,172.99,18.64488562]
[1729747928354,0.12549,173.03,172.99,18.64488562]
[1729747928549,23.902374,173.03,172.99,18.64488562]
[1729747928749,23.902374,173.03,173.0,18.64488562]
[1729747928949,44.027864,173.04,173.0,18.64488562]
[1729747930267,43.902374,173.04,173.0,18.64488562]
[1729747930560,18.64488562,173.08,173.03,18.64488562]
[1729747930736,18.64488562,173.08,173.04,18.64488562]
[1729747931763,23.902374,173.06,173.04,18.64488562]
[1729747931951,23.902374,173.06,173.03,18.64488562]
[1729747933669,23.902374,173.06,172.96,0.1]
[1729747933670,0.12549,173.06,173.04,18.64488562]
[1729747933854,24.027864,173.07,173.04,18.64488562]
[1729747934170,24.027864,173.07,173.03,18.64488562]
[1729747934765,42.67274962,173.07,173.03,18.64488562]
[1729747937248,24.027864,173.07,173.03,18.64488562]
[1729747938769,6.489,173.1,172.96,2.71962174]
[1729747938770,20.0,173.1,173.06,18.64488562]
[1729747939072,20.0,173.1,173.08,18.64488562]
[1729747939247,20.0,173.12,173.08,18.64488562]
[1729747939650,20.0,173.11,173.08,18.64488562]
[1729747939850,0.12549,173.1,173.08,18.64488562]
[1729747940063,23.776884,173.1,173.08,18.64488562]
[1729747941470,0.12549,173.09,173.08,18.64488562]
[1729747942171,0.12549,173.09,173.07,18.64488562]
[1729747944579,0.12549,173.09,173.06,18.64488562]
[1729747944752,0.12549,173.09,173.07,18.64488562]
[1729747952977,0.12549,173.09,173.06,18.64488562]
[1729747953493,0.12549,173.09,173.07,18.64488562]
[1729747954183,0.12549,173.09,173.08,18.64488562]
[1729747954365,27.53031755,173.16,173.08,18.64488562]
[1729747954366,5.7753,173.15,173.08,18.64488562]
[1729747954678,21.5204,173.16,173.12,18.64488562]
[1729747955781,40.16528562,173.16,173.11,18.64488562]
[1729747956277,24.027864,173.15,173.11,18.64488562]
[1729747956784,15.16994793,173.14,173.11,18.64488562]
[1729747957157,0.12549,173.15,173.12,18.64488562]
[1729747957961,15.4027,173.2,173.13,18.64488562]
[1729747958174,5.7741,173.19,173.15,18.64488562]
[1729747958382,15.4027,173.2,173.16,18.64488562]
[1729747958566,6.3607,173.21,173.16,18.64488562]
[1729747959183,24.41788562,173.22,173.16,18.64488562]
[1729747959395,24.41788562,173.22,173.17,18.64488562]
[1729747959889,20.0,173.21,173.16,18.64488562]
[1729747960085,25.7733,173.21,173.16,18.64488562]
[1729747960392,24.027864,173.2,173.16,18.64488562]
[1729747961095,48.44654962,173.2,173.15,18.64488562]
[1729747961282,29.801664,173.2,173.15,18.64488562]
[1729747961482,18.64488562,173.16,173.07,21.4221]
[1729747961687,18.64488562,173.14,173.07,21.4221]
[1729747961867,18.64488562,173.14,173.09,18.64488562]
[1729747962185,18.64488562,173.11,173.03,6.5171]
[1729747962370,0.12549,173.09,173.04,18.64488562]
[1729747962567,0.12549,173.09,173.03,6.5171]
[1729747962568,18.64488562,173.08,173.03,18.64488562]
[1729747962781,0.12549,173.07,173.02,33.98658562]
[1729747963081,18.77037562,173.07,173.02,33.98658562]
[1729747963485,0.12549,173.07,173.02,33.98658562]
[1729747963663,18.77037562,173.07,173.02,15.3417]
[1729747963868,0.12549,173.07,173.02,33.98658562]
[1729747965989,18.77037562,173.07,173.01,18.64488562]
[1729747966287,18.64488562,173.06,173.01,18.64488562]
[1729747967771,18.64488562,173.05,173.0,18.64488562]
[1729747967976,0.12549,173.04,173.0,18.64488562]
[1729747970670,18.64488562,173.03,172.98,18.64488562]
[1729747970886,0.12549,173.02,172.98,18.64488562]
[1729747971575,0.12549,173.03,172.99,18.64488562]
[1729747971772,0.12549,173.05,173.02,18.64488562]
[1729747971980,0.12549,173.05,173.04,18.64488562]
[1729747972184,20.0,173.08,173.04,18.64488562]
[1729747972491,20.0,173.08,173.05,18.64488562]
[1729747972677,18.64488562,173.1,173.05,18.64488562]
[1729747972884,38.64488562,173.09,173.04,18.64488562]
[1729747973490,0.12549,173.08,173.04,18.64488562]
[1729747974896,0.12549,173.08,173.03,18.64488562]
[1729747975192,0.12549,173.05,173.01,18.64488562]
[1729747975486,18.77037562,173.05,172.99,18.64488562]
[1729747975670,0.12549,173.03,172.99,18.64488562]
[1729747975873,18.77037562,173.05,173.0,18.64488562]
[1729747976975,18.77037562,173.05,172.95,0.1]
[1729747976976,0.12549,173.05,173.01,18.64488562]
[1729747977371,20.12549,173.05,173.01,18.64488562]
[1729747978586,0.12549,173.05,173.02,18.64488562]
[1729747978890,0.12549,173.06,173.02,18.64488562]
[1729747982599,18.77037562,173.06,173.01,18.64488562]
[1729747985094,0.12549,173.06,173.02,18.64488562]
[1729747985298,24.027864,173.1,173.04,18.64488562]
[1729747985506,0.12549,173.08,173.04,18.64488562]
[1729747985680,18.77037562,173.08,173.03,18.64488562]
[1729747985990,18.64488562,173.07,173.02,18.64488562]
[1729747988883,18.77037562,173.06,173.0,15.5535]
[1729747989192,18.77037562,173.06,173.01,18.64488562]
[1729747989396,18.64488562,173.05,173.0,15.5535]
[1729747989576,0.12549,173.04,172.96,15.6045]
[1729747989783,18.77037562,173.03,172.96,15.6045]
[1729747990092,0.12549,173.03,172.99,18.64488562]
[1729747990293,0.12549,173.04,173.0,18.64488562]
[1729747990786,20.0,173.09,173.02,18.64488562]
[1729747990787,0.12549,173.05,173.02,18.64488562]
[1729747990986,18.77037562,173.06,173.01,18.64488562]
[1729747991300,18.77037562,173.06,173.0,18.64488562]
[1729747991301,18.64488562,173.05,173.0,18.64488562]
[1729747991803,0.12549,173.06,173.01,18.64488562]
[1729747993210,18.64488562,173.05,173.0,18.64488562]
[1729747999510,0.12549,173.04,172.99,18.64488562]
[1729748003503,0.12549,173.04,173.0,18.64488562]
[1729748005703,0.12549,173.05,173.0,18.64488562]
[1729748006411,0.12549,173.05,173.01,18.64488562]
[1729748007108,20.12549,173.06,173.01,18.64488562]
[1729748007306,38.77037562,173.06,173.01,18.64488562]
[1729748008301,18.77037562,173.06,173.0,18.64488562]
[1729748008501,20.12549,173.06,173.02,18.64488562]
[1729748008909,38.77037562,173.06,173.01,18.64488562]
[1729748013503,44.54867562,173.06,173.0,18.64488562]
[1729748020924,38.77037562,173.06,173.0,18.64488562]
[1729748023921,44.54867562,173.06,173.0,18.64488562]
[1729748026617,0.12549,173.06,173.0,18.64488562]
[1729748026918,18.77037562,173.06,173.0,18.64488562]
[1729748032811,0.12549,173.06,173.01,18.64488562]
[1729748033013,0.12549,173.06,173.02,18.64488562]
[1729748033214,38.77037562,173.07,173.02,18.64488562]
[1729748033415,18.77037562,173.07,173.01,18.64488562]
[1729748033723,0.12549,173.05,173.01,18.64488562]
[1729748040440,0.12549,173.05,172.96,15.6045]
[1729748040615,0.12549,173.05,173.0,18.64488562]
[1729748041419,18.77037562,173.05,173.0,18.64488562]
[1729748041617,24.54917562,173.05,173.0,18.64488562]
[1729748042151,24.54917562,173.05,172.96,15.6045]
[1729748042315,24.54917562,173.05,173.0,18.64488562]
[1729748043021,24.54917562,173.05,172.96,15.6045]
[1729748043022,0.12549,173.03,172.96,15.6045]
[1729748043216,0.12549,173.03,173.0,18.64488562]
[1729748044021,0.12549,173.04,173.0,18.64488562]
[1729748045523,18.64488562,173.03,172.96,15.6045]
[1729748045739,0.12549,173.01,172.97,18.64488562]
[1729748047246,18.64488562,172.99,172.92,16.0823104]
[1729748047429,0.12549,172.98,172.94,18.64488562]
[1729748048925,0.12549,172.99,172.94,18.64488562]
[1729748050548,0.12549,172.99,172.92,16.0823104]
[1729748050549,0.12549,172.99,172.95,18.64488562]
[1729748050731,0.12549,173.0,172.96,18.64488562]
[1729748050930,0.12549,173.0,172.99,18.64488562]
[1729748051133,20.0,173.03,172.99,18.64488562]
[1729748051134,0.12549,173.03,172.99,18.64488562]
[1729748052245,0.12549,173.03,173.02,18.64488562]
[1729748052428,16.3877,173.06,173.02,18.64488562]
[1729748052629,5.778,173.07,173.03,18.64488562]
[1729748053033,24.42288562,173.07,172.97,16.6464]
[1729748053256,5.7777,173.08,173.03,18.64488562]
[1729748053427,18.64488562,173.09,173.04,18.64488562]
[1729748054242,20.0,173.08,173.04,18.64488562]
[1729748054444,25.7777,173.08,173.04,18.64488562]
[1729748054651,25.7777,173.08,173.03,18.64488562]
[1729748054951,44.42258562,173.08,173.03,18.64488562]
[1729748055450,0.12549,173.07,173.03,18.64488562]
[1729748055649,20.0,173.06,173.02,18.64488562]
[1729748055846,0.12549,173.05,173.02,18.64488562]
[1729748058537,0.12549,173.05,173.01,18.64488562]
[1729748059647,18.77037562,173.05,173.0,18.64488562]
[1729748060223,95.72994248,173.1,173.03,18.64488562]
[1729748060224,20.12549,173.08,173.03,18.64488562]
[1729748060427,20.12549,173.08,173.04,18.64488562]
[1729748065257,25.7763,173.12,173.05,18.64488562]
[1729748065433,20.0,173.09,173.05,18.64488562]
[1729748066839,38.64488562,173.09,173.04,18.64488562]
[1729748068756,18.77037562,173.08,173.03,18.64488562]
[1729748071156,0.12549,173.06,172.97,16.7464]
[1729748071360,0.12549,173.06,173.02,18.64488562]
[1729748072760,0.12549,173.06,173.01,18.64488562]
[1729748072761,18.77037562,173.06,173.01,18.64488562]
[1729748073454,18.77037562,173.07,173.02,18.64488562]
[1729748074469,24.54837562,173.07,173.02,18.64488562]
[1729748074639,24.54837562,173.07,173.01,18.64488562]
[1729748076364,0.12549,173.08,173.02,18.64488562]
[1729748076561,18.77037562,173.08,173.03,18.64488562]
[1729748077468,0.12549,173.06,173.02,18.64488562]
[1729748078456,0.12549,173.07,173.02,18.64488562]
[1729748080870,38.77037562,173.07,173.02,18.64488562]
[1729748081054,38.77037562,173.07,173.01,18.64488562]
[1729748085573,38.77037562,173.07,173.02,18.64488562]
[1729748087073,18.77037562,173.03,172.98,18.64488562]
[1729748087270,0.12549,173.01,172.97,18.64488562]
[1729748087777,18.77037562,173.01,172.96,18.64488562]
[1729748088456,0.12549,173.01,172.97,18.64488562]
[1729748090375,18.77037562,173.01,172.93,16.5457]
[1729748090576,18.77037562,173.01,172.96,18.64488562]
[1729748090759,18.64488562,173.0,172.93,16.5457]
[1729748090959,24.55047562,173.01,172.96,18.64488562]
[1729748091457,18.64488562,173.0,172.95,18.64488562]
[1729748091868,0.12549,172.99,172.95,18.64488562]
[1729748092069,0.12549,172.99,172.96,18.64488562]
[1729748092468,0.12549,173.0,172.96,18.64488562]
[1729748094165,0.12549,173.0,172.97,18.64488562]
[1729748103977,20.0,173.02,172.99,18.64488562]
[1729748104277,0.12549,173.02,173.01,18.64488562]
[1729748105681,0.12549,173.02,173.0,18.64488562]
[1729748105865,20.0,173.03,173.0,18.64488562]
[1729748106260,0.12549,173.02,173.0,18.64488562]
[1729748107391,0.12549,173.03,173.0,18.64488562]
[1729748107879,15.1041,173.08,173.02,18.64488562]
[1729748108180,9.32244281,173.1,173.06,9.32244281]
[1729748108392,5.7766,173.11,173.06,18.64488562]
[1729748108593,5.7766,173.11,173.07,18.64488562]
[1729748109386,20.0,173.1,173.07,18.64488562]
[1729748109566,38.64488562,173.1,173.05,18.64488562]
[1729748110385,0.12549,173.09,173.05,18.64488562]
[1729748110887,0.12549,173.07,173.04,18.64488562]
[1729748112984,0.12549,173.07,173.03,18.64488562]
[1729748113277,0.12549,173.07,172.97,6.7643]
[1729748113278,18.64488562,173.04,172.97,6.6643]
[1729748113479,18.64488562,173.04,172.99,18.64488562]
[1729748113683,18.64488562,173.04,173.0,18.64488562]
[1729748113988,18.64488562,173.05,173.0,18.64488562]
[1729748114479,18.64488562,173.05,172.96,0.12549]
[1729748114685,18.64488562,173.05,173.0,18.64488562]
[1729748115282,18.64488562,173.05,172.95,16.2763]
[1729748115283,0.12549,173.04,172.95,16.2763]
[1729748115491,18.77037562,173.04,172.95,16.2763]
[1729748115677,18.77037562,173.04,172.98,18.64488562]
[1729748115876,5.7787,173.05,172.98,18.64488562]
[1729748115877,0.12549,173.02,172.98,18.64488562]
[1729748116776,0.12549,173.03,172.99,18.64488562]
[1729748118094,0.12549,173.03,173.0,18.64488562]
[1729748118394,20.12549,173.06,173.02,18.64488562]
[1729748118701,0.12549,173.07,173.03,18.64488562]
[1729748119889,20.12549,173.07,173.03,18.64488562]
[1729748120492,20.0,173.07,173.04,18.64488562]
[1729748120893,20.0,173.08,173.04,18.64488562]
[1729748121088,25.7766,173.11,173.04,18.64488562]
[1729748121283,20.0,173.07,173.04,18.64488562]
[1729748121679,20.0,173.08,173.05,18.64488562]
[1729748121885,0.12549,173.08,173.05,18.64488562]
[1729748124495,0.12549,173.08,173.04,18.64488562]
[1729748125095,20.0,173.07,173.04,18.64488562]
[1729748125303,0.12549,173.08,173.04,18.64488562]
[1729748130391,0.12549,173.06,172.97,0.1]
[1729748130685,0.12549,173.06,173.02,18.64488562]
[1729748131283,0.12549,173.06,173.03,18.64488562]
[1729748131488,20.12549,173.07,173.03,18.64488562]
[1729748140611,20.12549,173.07,173.04,18.64488562]
[1729748140907,20.12549,173.08,173.04,18.64488562]
[1729748142014,20.0,173.1,173.07,18.64488562]
[1729748142308,38.64488562,173.1,173.05,18.64488562]
[1729748143320,0.12549,173.09,173.05,18.64488562]
[1729748143498,0.12549,173.09,173.01,15.5895]
[1729748143700,0.12549,173.09,173.05,18.64488562]
[1729748146494,0.12549,173.09,173.06,18.64488562]
[1729748147910,0.12549,173.09,173.01,15.5895]
[1729748148204,0.12549,173.09,173.05,18.64488562]
[1729748148400,6.00982008,173.13,173.08,18.64488562]
[1729748148602,22.0556,173.19,173.12,18.64488562]
[1729748148809,22.0556,173.19,173.08,0.1]
[1729748148810,5.7741,173.19,173.15,18.64488562]
[1729748149312,24.41848562,173.21,173.16,18.64488562]
[1729748150209,20.0,173.2,173.16,18.64488562]
[1729748150401,20.0,173.2,173.17,18.64488562]
[1729748150704,0.12549,173.19,173.17,18.64488562]
[1729748150916,27.8285,173.23,173.18,18.64488562]
[1729748151096,27.8285,173.23,173.19,18.64488562]
[1729748151602,27.8285,173.23,173.18,18.64488562]
[1729748152114,20.0,173.22,173.18,18.64488562]
[1729748152406,20.0,173.22,173.12,15.5895]
[1729748152407,18.64488562,173.26,173.21,18.64488562]
[1729748152619,18.64488562,173.25,173.2,18.64488562]
[1729748153216,24.41688562,173.25,173.2,18.64488562]
[1729748153409,20.12549,173.24,173.14,0.22549]
[1729748153604,0.12549,173.24,173.2,18.64488562]
[1729748154806,0.12549,173.22,173.18,18.64488562]
[1729748155213,0.12549,173.22,173.19,18.64488562]
[1729748156013,0.12549,173.23,173.19,18.64488562]
[1729748158323,0.12549,173.24,173.2,18.64488562]
[1729748158518,20.12549,173.25,173.21,18.64488562]
[1729748158918,44.54237562,173.25,173.21,18.64488562]
[1729748159306,44.54237562,173.25,173.2,18.64488562]
[1729748160030,44.54237562,173.25,173.14,0.22549]
[1729748160224,44.54237562,173.25,173.2,18.64488562]
[1729748161431,25.89749,173.25,173.21,18.64488562]
[1729748161728,25.89749,173.25,173.2,9.32244281]
[1729748161905,44.54237562,173.25,173.2,18.64488562]
[1729748162111,44.54237562,173.25,173.14,0.22549]
[1729748162413,44.54237562,173.25,173.2,18.64488562]
[1729748163124,18.64488562,173.21,173.17,18.64488562]
[1729748163333,0.12549,173.2,173.16,18.64488562]
[1729748163709,0.12549,173.2,173.17,18.64488562]
[1729748164323,18.64488562,173.22,173.18,18.64488562]
[1729748164527,0.12549,173.21,173.18,18.64488562]
[1729748165423,0.12549,173.22,173.18,18.64488562]
[1729748167033,18.77037562,173.22,173.18,18.64488562]
[1729748167223,18.77037562,173.22,173.17,18.64488562]
[1729748169543,18.64488562,173.21,173.16,18.64488562]
[1729748169836,18.77037562,173.22,173.17,18.64488562]
[1729748170536,18.77037562,173.22,173.18,18.64488562]
[1729748170928,0.12549,173.22,173.18,18.64488562]
[1729748171271,20.12549,173.22,173.18,18.64488562]
[1729748173837,44.54347562,173.22,173.17,18.64488562]
[1729748178235,18.64488562,173.21,173.12,15.5895]
[1729748178442,18.77037562,173.17,173.09,6.2845]
[1729748178628,18.64488562,173.14,173.09,18.64488562]
[1729748179031,18.64488562,173.12,173.05,6.0104]
[1729748179229,0.12549,173.13,173.08,18.64488562]
[1729748179943,0.12549,173.13,173.09,18.64488562]
[1729748180425,38.77037562,173.14,173.09,18.64488562]
[1729748180821,20.12549,173.14,173.1,18.64488562]
[1729748181016,0.12549,173.14,173.1,18.64488562]
[1729748181241,6.10494331,173.2,173.05,6.0104]
[1729748181242,20.0,173.17,173.13,18.64488562]
[1729748181543,24.41888562,173.19,173.14,18.64488562]
[1729748181740,20.0,173.18,173.14,18.64488562]
[1729748182242,24.41888562,173.19,173.14,18.64488562]
[1729748182945,18.77037562,173.18,173.13,18.64488562]
[1729748183334,18.77037562,173.18,173.12,18.64488562]
[1729748183539,18.77037562,173.16,173.11,18.64488562]
[1729748183842,18.77037562,173.14,173.09,18.64488562]
[1729748184035,0.12549,173.13,173.1,18.64488562]
[1729748184233,18.64488562,173.15,173.1,18.64488562]
[1729748184437,0.12549,173.15,173.1,18.64488562]
[1729748185025,0.12549,173.15,173.11,18.64488562]
[1729748185424,0.12549,173.15,173.12,18.64488562]
[1729748185724,38.77037562,173.16,173.11,18.64488562]
[1729748189846,44.54537562,173.16,173.11,18.64488562]
[1729748191246,44.54537562,173.16,173.05,6.0104]
[1729748191247,0.12549,173.14,173.1,18.64488562]
[1729748192122,0.12549,173.15,173.13,18.64488562]
[1729748192327,0.12549,173.16,173.13,18.64488562]
[1729748195250,0.12549,173.17,173.13,18.64488562]
[1729748195425,0.12549,173.17,173.14,18.64488562]
[1729748195632,20.12549,173.18,173.15,18.64488562]
[1729748195940,20.12549,173.18,173.16,18.64488562]
[1729748196351,0.12549,173.18,173.16,18.64488562]
[1729748196549,0.12549,173.19,173.16,18.64488562]
[1729748202956,23.776884,173.24,173.18,18.64488562]